Cogmind - Beta 14 @@@ ROGUE MODE // 2025.03.30 @ 19:55:44 Player: GiggleBox Result: Destroyed self with Grenade Launcher Performance ------------- Evolutions (0) 0 Regions Visited (2) 400 Robots Destroyed (30) 150 Value Destroyed (511) 511 Prototype IDs (0) 0 Alien Tech Used (0) 0 Bonus (0) 0 TOTAL SCORE: 1061 Bonus ------- None Cogmind --------- Core Integrity 0/250 Matter 250/300 Energy 99/100 System Corruption 0% Temperature Cool (2) Movement Flying (37) Location -10/Mines Parts ------- > --- POWER (1) -------- (None) > --- PROPULSION (2) --- Flight Unit Flight Unit > --- UTILITY (2) ------ Small Storage Unit > --- WEAPON (2) ------- Grenade Launcher > --- INVENTORY (8) ---- Compact Wheel Propulsion Shielding Medium Laser Particle Gun Mining Laser Peak State ------------ > --- POWER ------------ Light Ion Engine > --- PROPULSION ------- Aluminum Leg Compact Wheel > --- UTILITY ---------- Small Storage Unit Propulsion Shielding > --- WEAPON ----------- Medium Laser Particle Gun > --- INVENTORY -------- Flight Unit Flight Unit Flight Unit Assault Rifle Grenade Launcher [Rating: 8] Favorites ----------- Power Light Ion Engine Engine Light Ion Engine Propulsion Aluminum Leg Leg Aluminum Leg Wheel Compact Wheel Flight Unit Flight Unit Utility Small Storage Unit Device Seismic Detector Storage Small Storage Unit Protection Propulsion Shielding Weapon Assault Rifle Energy Gun Medium Laser Ballistic Gun Assault Rifle Launcher Grenade Launcher Build | -11 -10 -10 ------- Run | Yrd Mat Min Slots Evolved . | . . . Power . | . . . Propulsion . | . . . Utility . | . . . Weapon . | . . . Parts Attached 15 | 2 11 2 Power 2 | . 2 . Engine 2 | . 2 . Core . | . . . Reactor . | . . . Propulsion 4 | . 4 . Treads . | . . . Leg 1 | . 1 . Wheel 1 | . 1 . Hover . | . . . Flight 2 | . 2 . Utility 3 | 1 1 1 Device 1 | 1 . . Storage . | . . . Processor . | . . . Hackware . | . . . Protection 2 | . 1 1 Artifact . | . . . Weapon 6 | 1 4 1 Energy Gun 4 | 1 3 . Energy Cannon . | . . . Ballistic Gun 1 | . 1 . Ballistic Cannon . | . . . Launcher 1 | . . 1 Special Weapon . | . . . Impact Weapon . | . . . Slashing Weapon . | . . . Piercing Weapon . | . . . Special Melee Weapon . | . . . Unidentified Prototypes . | . . . Parts Lost 7 | . 7 . Power 2 | . 2 . Propulsion 2 | . 2 . Utility 1 | . 1 . Weapon 2 | . 2 . Highest Loss Streak 3 | . 3 . To Critical Strikes . | . . . Average Slot Usage (%) 79 | . 80 58 Engine 10 | . 11 . Leg 18 | . 19 . Flight 7 | . 5 28 Device 3 | . 3 . Storage 14 | . 14 14 Energy Gun 12 | . 13 . Ballistic Gun 10 | . 11 . Launcher 1 | . . 14 Peak Build Rating 8 | 7 8 5 Average Rating 5 | 6 5 4 On Entrance 5 | 6 7 4 Naked Turns . | . . . Heaviest Build 14 | 13 14 8 Greatest Support 20 | 20 20 8 Greatest Overweight (x) 1 | . 1 . Average Overweight (x) . | . . . Largest Inventory Capacity 8 | 8 8 8 Average Capacity 8 | 8 8 8 Most Carried 8 | 6 8 5 Average Carried 6 | 6 7 4 Final Capacity 8 | 8 8 8 Final Carried 6 | 6 5 5 Class Distribution -------------------- 100% | Mutant Dominant Class ---------------- Mutant | -10/Materials Mutant | -10/Mines Resources | -11 -10 -10 ----------- Run | Yrd Mat Min Matter Collected 602 | 224 378 . Remotely . | . . . Salvage Created 838 | 124 701 13 Parts 54 | 9 42 3 Haulers Intercepted . | . . . Recyclers Shooed 1 | 1 . . Parts Field Recycled . | . . . Retrieved Matter . | . . . Parts Self-Destructed . | . . . Prevented . | . . . Kills | -11 -10 -10 ------- Run | Yrd Mat Min Combat Hostiles Destroyed 20 | . 17 3 Guns 15 | . 15 . AOE 4 | . 1 3 Classes Destroyed 7 | 2 5 . Worker 1 | . 1 . Builder 1 | . 1 . Tunneler 2 | 2 . . Recycler 3 | 1 2 . Watcher 3 | . 3 . Swarmer 12 | . 9 3 Grunt 8 | . 8 . Best Kill Streak 4 | 2 4 3 Combat Bots Only 4 | . 4 3 Max Kills in Single Turn 2 | 1 1 2 Gunslinging . | . . . Exploded 2 | . 1 2 Melee . | . . . Uniques/NPCs Destroyed . | . . . Combat | -11 -10 -10 -------- Run | Yrd Mat Min Hostile Shots Fired 133 | . 126 7 Missed 38 | . 36 2 Damage Taken 976 | . 895 81 Core 258 | . 200 58 Absorbed by Shields . | . . . Redirected to Shielding 3 | . . 3 Core Remaining (%) 100 | 100 . . Volleys Fired 100 | 9 88 3 Largest 2 | 2 2 1 Hottest 70 | 70 70 30 Shots Fired 197 | 18 176 3 Gun 194 | 18 176 . Cannon . | . . . Launcher 3 | . . 3 Special . | . . . Kinetic 103 | 9 94 . Thermal 44 | 9 35 . Explosive 3 | . . 3 Electromagnetic 47 | . 47 . Robot Hit Streak 12 | 7 12 2 Robot Miss Streak 6 | 2 6 1 Penetration Max . | . . . Secondary Targets 1 | . 1 . Max Gunslinging Chain 1 | . 1 . Shots Hit Robots 106 | 12 92 2 Core Hits 41 | 4 34 3 Critical Kills 1 | . 1 . Critical Parts Destroyed 1 | . 1 . Critical Strikes 5 | 1 4 . Burn 2 | 1 1 . Destroy 2 | . 2 . Corrupt 1 | . 1 . Melee Attacks . | . . . Impact . | . . . Slashing . | . . . Piercing . | . . . Sneak Attacks . | . . . Combat Hostiles . | . . . Follow-up Attacks . | . . . Damage Inflicted 1871 | 149 1562 160 Guns 1362 | 149 1213 . Cannons . | . . . Explosions 501 | . 341 160 Melee . | . . . Ramming 8 | . 8 . Kinetic 653 | 72 581 . Thermal 339 | 77 262 . Explosive 466 | . 306 160 Electromagnetic 405 | . 405 . Impact . | . . . Slashing . | . . . Piercing . | . . . Highest Corruption . | . . . Average Corruption . | . . . Corruption Purged . | . . . Corruption Blocked . | . . . Overload Shots . | . . . Overflow Damage 80 | . 80 . Projectiles . | . . . Explosions 80 | . 80 . Melee . | . . . Knockbacks 1 | . 1 . Impact 1 | . 1 . Kinetic . | . . . Secondary . | . . . Self-Inflicted Damage 57 | . . 57 Shots 3 | . . 3 Rammed . | . . . Targets Rammed 1 | . 1 . Kicked 1 | . 1 . Crushed . | . . . Highest Temperature 216 | 45 216 . Average Temperature 68 | 18 76 . Received Heat Transfer 330 | . 330 . Siege Activations . | . . . Robots Corrupted . | . . . Combat Hostiles . | . . . Parts Fried 2 | . 2 . Impact Corruptions . | . . . Robots Melted 1 | . 1 . Combat Hostiles 1 | . 1 . Parts Melted 3 | 1 2 . Heat Transferred 1136 | 296 840 . Parts Sabotaged . | . . . Parts Stolen . | . . . Parts Stripped . | . . . Power Chain Reactions 1 | . 1 . Alert | -11 -10 -10 ------- Run | Yrd Mat Min Peak Influence 275 | 15 275 133 Initial 51 | . 9 51 Average 123 | 7 128 130 Maximum Alert Level 1 | . 1 . Low Security (%) 83 | 100 81 100 Level 1 16 | . 18 . Level 2 . | . . . Level 3 . | . . . Level 4 . | . . . Level 5 . | . . . High Security . | . . . Max Security . | . . . Squads Dispatched 1 | . 1 . Investigation . | . . . Extermination . | . . . Reinforcement 1 | . 1 . Assault . | . . . Garrison . | . . . Intercept . | . . . Searches Triggered . | . . . Construction Impeded . | . . . Haulers Reinforced . | . . . Active Scanning Responses . | . . . Cargo Convoy Interrupts . | . . . Stealth | -11 -10 -10 --------- Run | Yrd Mat Min Distress Signals 1 | . 1 . Communications Jammed . | . . . Distress Signals . | . . . Times Spotted 31 | . 26 5 Peak Tracking Total 4 | . 4 3 Tactical Retreats 2 | . 2 . Traps | -11 -10 -10 ------- Run | Yrd Mat Min Traps Triggered . | . . . Indirectly . | . . . Trap Hack Attempts . | . . . Triggered . | . . . Disarmed . | . . . Reprogrammed . | . . . Reused . | . . . Traps Extracted . | . . . Installed . | . . . Triggered . | . . . Machines | -11 -10 -10 ---------- Run | Yrd Mat Min Machines Disabled 2 | . 2 . Max in Single Turn 2 | . 2 . Machines Repaired . | . . . Machines Dismantled . | . . . Machines Sabotaged . | . . . Overloaded Fab Kills . | . . . Hacking | -11 -10 -10 --------- Run | Yrd Mat Min Machines Accessed 6 | . 6 . Terminals 6 | . 6 . Fabricators . | . . . Repair Stations . | . . . Recycling Units . | . . . Scanalyzers . | . . . Garrison Access . | . . . Total Hacks 28 | . 28 . Successful 15 | . 15 . Failed 13 | . 13 . Catastrophic . | . . . Database Lockouts . | . . . Manual 19 | . 19 . Terminals 28 | . 28 . Fabricators . | . . . Repair Stations . | . . . Recycling Units . | . . . Scanalyzers . | . . . Garrison Access . | . . . Terminal Hacks 5 | . 5 . Branch Access Points 1 | . 1 . Terminal Index 1 | . 1 . Alert Level 1 | . 1 . Hauler Manifests 2 | . 2 . Fabricator Hacks . | . . . Repair Station Hacks . | . . . Recycling Unit Hacks . | . . . Scanalyzer . | . . . Garrison Access Hacks . | . . . Unauthorized Hacks 10 | . 10 . Terminals 10 | . 10 . Botnet 4 | . 4 . Operators 1 | . 1 . Skim 5 | . 5 . Fabricators . | . . . Repair Stations . | . . . Recycling Units . | . . . Scanalyzers . | . . . Garrison Access . | . . . Data Cores Recovered . | . . . Used . | . . . Hacking Detections 6 | . 6 . Full Trace Events . | . . . Feedback Events . | . . . Feedback Blocked . | . . . Robot Schematics Acquired . | . . . Robots Built . | . . . Authchips . | . . . Time . | . . . Total Robot Build Rating . | . . . Part Schematics Acquired . | . . . Parts Built . | . . . Authchips . | . . . Time . | . . . Total Part Build Rating . | . . . Parts Repaired . | . . . Time . | . . . Parts Recycled . | . . . Recycled Matter . | . . . Retrieved Matter . | . . . Retrieved Components . | . . . Parts Scanalyzed . | . . . Part Schematics Acquired . | . . . Parts Damaged . | . . . Bothacking | -11 -10 -10 ------------ Run | Yrd Mat Min Used RIF Installer . | . . . Robots Hacked . | . . . Non-combat . | . . . Combat . | . . . Robot Hacks Applied . | . . . Relay Couplers Released . | . . . Fabnet Peak Effective % . | . . . Robots Rewired . | . . . Allies Hacked . | . . . Hacks Repelled . | . . . Allies | -11 -10 -10 -------- Run | Yrd Mat Min Total Allies . | . . . Largest Group . | . . . Highest-Rated Group . | . . . Highest-Rated Ally . | . . . Total Orders . | . . . Ally Attacks . | . . . Total Damage . | . . . Kills . | . . . Allies Corrupted . | . . . Allies Melted . | . . . Intel | -11 -10 -10 ------- Run | Yrd Mat Min Robot Analysis Total . | . . . Derelict Logs Recovered . | . . . Drone Launches . | . . . Drone Recoveries . | . . . Exploration | -11 -10 -10 ------------- Run | Yrd Mat Min Turns Passed 1543 | 65 1371 107 Spaces Moved 962 | 30 674 258 Core . | . . . Treads . | . . . Legs 632 | 30 602 . Wheels 7 | . 7 . Hover . | . . . Flight 323 | . 65 258 Fastest Speed 37 | 120 37 37 Average Speed 97 | 120 120 37 Slowest Speed 190 | 120 190 37 Overloaded Moves . | . . . Propulsion Burnouts . | . . . Robots Hopped 6 | . . 6 Cave-ins Triggered . | . . . Exploration Rate (%) 48 | 4 88 53 Regions Visited 2 Branch Regions 1 Pre-discovered Areas 1 | . 1 . Known Exits Taken 1 | . 1 . Unknown Exits Taken 1 | 1 . . Scrap Searched 1 | . . 1 Spaces Dug . | . . . Terrain Destroyed 45 | . 27 18 Melee . | . . . Projectile . | . . . AOE 45 | . 27 18 Terrain Rammed . | . . . Walls Destroyed . | . . . Machines Disabled . | . . . Actions | -11 -10 -10 --------- Run | Yrd Mat Min Total 1363 | 40 1061 262 Wait 272 | . 268 4 Move 950 | 29 673 248 Hop 4 | . . 4 Pick Up 10 | . 10 . Fast Attach 1 | 1 . . Attach 9 | . 8 1 Detach 4 | . 3 1 Swap 5 | 1 3 1 Drop 7 | . 7 . Fire 100 | 9 88 3 Melee . | . . . Ram . | . . . Kick 1 | . 1 . Crush . | . . . Escape Stasis . | . . . Rewire . | . . . Trap . | . . . Miscellaneous . | . . . Route ------- -11/Scrapyard -10/Materials (discovered 5 exits: [*Mat x3] / *Min / Sub) -10/Mines History --------- Turn | Location | Event 1 | -11/Scrapyard | Discovered new exit (range 2) 66 | -11/Scrapyard | Entered Materials 136 | -10/Materials | Discovered new exit (range 6) 324 | -10/Materials | Build established: Mutant 345 | -10/Materials | Discovered new exit (range 8) 580 | -10/Materials | Discovered new exit (range 4) 790 | -10/Materials | Lost 3 parts (1n2w) 794 | -10/Materials | Discovered new exit (range 10) 1014 | -10/Materials | Identified exit to Mines 1079 | -10/Materials | Core integrity fell below 50% 1119 | -10/Materials | Learned Storage emergency access door positions 1178 | -10/Materials | Identified exit to Subcaves 1229 | -10/Materials | Learned Storage garrison access intel 1271 | -10/Materials | Learned Materials emergency access door positions 1348 | -10/Materials | Learned Storage emergency access door positions 1437 | -10/Materials | Entered Mines 1439 | -10/Mines | Core integrity fell below 20% 1516 | -10/Mines | Met a Derelict bent on vengeance 1523 | -10/Mines | Assembled infested the area 1526 | -10/Mines | Found a damaged Exp. Sensor Array with a note attached 1544 | -10/Mines | Destroyed self with Grenade Launcher Last Messages --------------- LOCATION=MINES GOAL=ESCAPE 01440_ S-10 Pest destroyed. 01486_ Searching scrap... 01486_ Found Lgt. Treads. 01486_ Found Mining Laser. 01486_ Found Lgt. Cannon. 01486_ Found Sml. Matter Pod. 01486_ Found 47 Matter. 01510_ K-01 Serf collects debris. 01523_ ALERT: Infestation in the mines, dispatching Demolisher response squad. 01526_ A damaged part is partially visible under some rubble. There's a note attached: "Everyone keeps telling us we should avoid high-traffic areas because that's where patrols are more likely to show up, but that doesn't do us much good if we can't spot those areas until they're on top of us... With this we can! Deliver it to Megawrench for repairs then we'll never be afraid of an ambush while sneaking around Materials again, ha." 01534_ K-01 Serf collects debris. Map ----- +----------------------------------------------------+ | ?????????????# #? | | ????????????# ############### #? | | ?????????# ##?????????????# ##? | | ?????? #######????????####?## ##?? | | ????? #???????????##### ### ##?? | | ?????#### ????????????# #?? | | ????????## ????????????# """ #? | | ?????????## ????????????# """ #? | | ??????????# ?????????????# # """ ##? | | ?????????# ?????????????# ## ######?? | | ?????????# ?????????????# ########??????? | | ?????????# ??????????????# ############??? | | ??????????# ??????????????# #??? | | ?????????????? ??????????????# ]=#??? | | ?????????????????????????????############|%#??? | | ????????????????????????????????????????# !#??? | | ?????????????#??????????????????????????# #??? | | ?????????????# ?????????????????#???????# ##?? | | ?????????????? ??????????????""" ??????# #?? | | ??????????????? #####???????? ""????????# #?? | | ???????????????? #???#### ?????????## #?? | | ????????????????? #???# s ??????????## ##?? | | ?????????????????# #???#s#???????????# ##??? | | ?????????????????# #???# ??????????## #???? | | ?????????????????# ##### ?????????## ##???? | | ?????????????????# @ ????????## ##????? | | ?????????????????# #######???????## ##????? | | ?????????????????# #????????????## #????? | | ?????????????????# #???????###### #????? | | ####?????????????# #???????# ##????? | | ####??????????# #???????# ##### ##?????? | | ##?????????# #???????# #???## ##??????? | | #?????????# #???????# #????####???????? | | # #????????## ##??????# #???????????????? | | # ##????????# ##?????# #???????????????? | | # #?????????# ####??# ######??????????? | | ##???????## ##?# #??????????? | | ###?????# #?###### #??????????? | | ## """ ####### ######## #??????????? | | ?# """ #??????????? | | ## """ ########## ##########?? | | # ######## ##??????# #?? | | # ##??????## ##???????# #?? | | ## ##????????######????????# #?? | | ?### ##???????????????????????# """ """ #?? | | ???####????????????????????????# """ """ #?? | | ???????????????????????????????# """ """ #?? | | ???????????????????????????????# #?? | | ???????????????????????????????# """ """ #?? | | ???????????????????????????????# """ """ #?? | +----------------------------------------------------+ Best States ------------- Heat Dissipation 25 Energy Generation 10 Energy Capacity 125 Matter Stores 300 Matter Capacity 300 Sight Range 16 Terrain Scan Density 10 Propulsion Shielding 33 Evasion (%) 62 Item Schematics ----------------- None Robot Schematics ------------------ None Fabricated ------------ Nothing Alien Tech Used ----------------- None Achievements -------------- None Challenges ------------ None Game ------ Seed SwarmNeutrinoInsulator Manual? 0 Play Time 00:12:55 Cumulative 49.1 hours Start 2025.03.30 @ 19:39:23 End 2025.03.30 @ 19:55:44 Sessions 1 Manual Loads 0 Difficulty Rogue Special Mode None Game No. 58 Rogue 58 Adventurer 0 Explorer 0 Win Type - Total 0 Types 0/0/0/0/0/0/0/0/0 Lore% 13 Gallery% 34 Achievement% 28 Wizard Run 0 Options --------- Layout 0 ASCII 0 Keyboard 1 Movement Numpad Keybinds 0 Fullscreen 1 Font 24/Terminus Map View 76x50 Zoom Use 0% Tactical HUD 1 Map Filters NONE Filters NONE Steam 1 RUN: 5d994ce8-1be8-4a06-8e66-90854f349cf3